bitfinex/quotes_SOLUSD_20250318
["timestamp","ask_amount","ask_price","bid_price","bid_amount"]
[1742307609621,20.0,122.32,122.3,0.03]
[1742307609812,46.1352314,122.32,122.3,8.05]
[1742307610020,26.1352314,122.31,122.3,8.05]
[1742307610521,20.0,122.32,122.3,8.05]
[1742307610700,73.3971,122.34,122.3,8.05]
[1742307610898,0.0001,122.34,122.31,0.42648471]
[1742307611297,0.0001,122.34,122.33,0.28432314]
[1742307611602,0.0001,122.34,122.32,0.14216157]
[1742307611819,0.0001,122.34,122.32,0.28432314]
[1742307612522,0.0001,122.34,122.32,26.41955454]
[1742307612840,0.0001,122.34,122.33,26.56171611]
[1742307613013,0.0001,122.34,122.33,46.77156497]
[1742307613211,0.0001,122.34,122.33,52.83556497]
[1742307615436,0.0001,122.34,122.33,80.19625481]
[1742307615604,0.063,122.42,122.39,0.42648471]
[1742307615809,0.063,122.42,122.41,45.21136497]
[1742307616726,0.063,122.42,122.41,19.07613357]
[1742307617023,0.063,122.42,122.41,0.42648471]
[1742307617210,0.063,122.42,122.41,0.28432314]
[1742307617410,26.1982314,122.42,122.41,8.02]
[1742307617610,26.1982314,122.42,122.38,8.02]
[1742307617819,26.1352314,122.39,122.38,8.02]
[1742307618223,26.1352314,122.39,122.36,0.14216157]
[1742307618429,26.1352314,122.38,122.36,8.16216157]
[1742307619319,0.063,122.42,122.33,0.14216157]
[1742307619320,41.77809308,122.37,122.33,0.14216157]
[1742307619508,41.77809308,122.36,122.34,8.02]
[1742307620227,41.77809308,122.38,122.35,0.14216157]
[1742307620730,41.77809308,122.36,122.35,0.14216157]
[1742307621223,41.77809308,122.36,122.34,8.02]
[1742307621434,41.77809308,122.35,122.33,0.14216157]
[1742307621728,41.77809308,122.34,122.32,8.02]
[1742307621917,41.77809308,122.33,122.31,0.14216157]
[1742307622101,41.77809308,122.34,122.31,0.14216157]
[1742307622612,41.77809308,122.33,122.31,0.14216157]
[1742307623817,41.77809308,122.33,122.3,0.31432314]
[1742307624023,73.397,122.37,122.3,42.23457779]
[1742307624323,115.17509308,122.37,122.32,42.20457779]
[1742307624524,115.17509308,122.37,122.34,0.14216157]
[1742307624719,41.77809308,122.4,122.34,60.85422665]
[1742307624720,73.397,122.4,122.34,60.85422665]
[1742307624919,41.77809308,122.4,122.34,60.85422665]
[1742307625635,41.77809308,122.4,122.36,0.28432314]
[1742307625805,41.77809308,122.4,122.37,8.02]
[1742307626830,73.46,122.42,122.37,8.02]
[1742307627044,41.77809308,122.39,122.37,8.02]
[1742307627418,41.77809308,122.4,122.37,8.02]
[1742307627623,41.77809308,122.39,122.37,8.02]
[1742307628740,41.77809308,122.4,122.37,8.02]
[1742307628925,41.77809308,122.39,122.37,8.02]
[1742307629528,41.77809308,122.38,122.35,0.14216157]
[1742307629834,41.77809308,122.37,122.35,0.14216157]
[1742307630210,41.77809308,122.36,122.32,0.14216157]
[1742307630435,41.77809308,122.35,122.33,0.14216157]
[1742307630827,41.77809308,122.37,122.33,0.14216157]
[1742307631026,41.77809308,122.37,122.33,0.42648471]
[1742307631229,41.77809308,122.38,122.34,0.03]
[1742307631437,41.77809308,122.37,122.34,0.03]
[1742307632437,41.77809308,122.35,122.34,0.03]
[1742307634119,73.397,122.39,122.34,0.03]
[1742307634320,41.77809308,122.35,122.34,0.03]
[1742307634521,41.77809308,122.36,122.34,0.03]
[1742307634932,41.77809308,122.37,122.34,0.03]
[1742307635132,41.77809308,122.38,122.34,0.31432314]
[1742307635330,41.77809308,122.37,122.34,0.31432314]
[1742307635539,41.77809308,122.37,122.34,0.03]
[1742307636039,41.77809308,122.4,122.34,0.03]
[1742307636040,41.77809308,122.35,122.34,0.03]
[1742307639823,79.7027,122.42,122.34,0.03]
[1742307640026,41.77809308,122.37,122.34,0.17216157]
[1742307640535,41.77809308,122.38,122.34,0.17216157]
[1742307640744,41.77809308,122.37,122.34,0.17216157]
[1742307641048,41.77809308,122.37,122.34,0.03]
[1742307641642,41.77809308,122.38,122.34,0.03]
[1742307642548,41.77809308,122.37,122.34,0.03]
[1742307642947,0.063,122.37,122.34,0.03]
[1742307643747,0.063,122.37,122.35,0.28432314]
[1742307644048,0.0395,122.37,122.36,0.14216157]
[1742307646941,0.0395,122.37,122.35,60.85422665]
[1742307647139,0.0395,122.37,122.35,19.07613357]
[1742307648342,0.0395,122.37,122.35,0.42648471]
[1742307648929,41.81759308,122.37,122.34,0.03]
[1742307649135,41.77809308,122.36,122.34,0.03]
[1742307649535,41.81759308,122.37,122.34,0.03]
[1742307650739,41.77809308,122.36,122.34,0.03]
[1742307651383,41.77809308,122.35,122.34,0.03]
[1742307655769,91.57618616,122.35,122.34,0.03]
[1742307656459,49.79809308,122.35,122.34,0.03]
[1742307658048,8.02,122.35,122.34,0.03]
[1742307658249,49.79809308,122.35,122.34,0.03]
[1742307658447,91.57618616,122.35,122.34,0.03]
[1742307658642,49.79809308,122.35,122.34,0.03]
[1742307658850,91.57618616,122.35,122.34,0.03]
[1742307659257,83.55618616,122.35,122.34,0.03]
[1742307659457,91.57618616,122.35,122.34,0.03]
[1742307659943,49.79809308,122.35,122.34,0.03]
[1742307660166,123.19509308,122.35,122.34,0.03]
[1742307660656,0.0395,122.37,122.34,0.03]
[1742307661174,26.1261207,122.35,122.34,0.03]
[1742307661340,0.0395,122.37,122.34,0.03]
[1742307661663,26.1261207,122.36,122.34,0.03]
[1742307661847,0.0395,122.37,122.34,0.17216157]
[1742307662246,26.1656207,122.37,122.34,0.17216157]
[1742307662649,0.0395,122.37,122.34,0.45648471]
[1742307662859,0.0395,122.37,122.34,26.58260541]
[1742307663061,0.0395,122.37,122.34,0.45648471]
[1742307663464,0.0001,122.37,122.36,0.28432314]
[1742307663642,0.0001,122.37,122.34,41.80222025]
[1742307663843,41.77232025,122.37,122.34,0.45648471]
[1742307664055,41.77232025,122.37,122.34,0.17216157]
[1742307664567,41.77232025,122.37,122.34,0.03]
[1742307664753,41.77232025,122.37,122.34,0.17216157]
[1742307666253,0.0001,122.37,122.34,0.45648471]
[1742307666453,0.0001,122.37,122.34,42.22870496]
[1742307666853,0.0001,122.37,122.34,0.45648471]
[1742307667870,0.0001,122.37,122.34,42.22870496]
[1742307668047,0.0001,122.37,122.36,60.84835382]
[1742307668251,0.0001,122.37,122.36,68.86835382]
[1742307669255,0.0001,122.37,122.36,27.09613357]
[1742307669675,0.0001,122.37,122.36,8.02]
[1742307669865,0.0001,122.37,122.36,8.30432314]
[1742307670174,0.0001,122.37,122.36,8.44648471]
[1742307670379,0.0001,122.37,122.36,27.09613357]
[1742307670786,0.0001,122.37,122.36,68.86835382]
[1742307670949,0.0001,122.37,122.36,74.97925382]
[1742307671677,0.0001,122.37,122.36,33.20703357]
[1742307672088,0.0001,122.37,122.36,74.97925382]
[1742307672385,0.0001,122.37,122.36,33.20703357]
[1742307672850,0.0001,122.37,122.36,14.27306157]
[1742307673051,0.0001,122.37,122.36,8.16216157]
[1742307673271,0.0001,122.37,122.36,0.14216157]
[1742307673479,41.77232025,122.37,122.36,0.14216157]
[1742307673979,0.0001,122.37,122.36,0.14216157]
[1742307674356,41.77232025,122.37,122.34,8.05]
[1742307674551,0.0001,122.37,122.35,0.14216157]
[1742307675462,41.77232025,122.37,122.35,0.14216157]
[1742307675663,0.0001,122.37,122.35,0.14216157]
[1742307676448,41.77222025,122.36,122.34,0.03]
[1742307676675,41.77222025,122.35,122.34,0.03]
[1742307676976,0.0001,122.37,122.34,0.03]
[1742307677274,41.77222025,122.35,122.34,0.03]
[1742307679463,73.3971,122.37,122.34,0.03]
[1742307679662,41.77222025,122.35,122.34,0.03]
[1742307680670,41.77222025,122.36,122.34,0.03]
[1742307681054,73.3971,122.37,122.34,0.03]
[1742307681260,73.3971,122.37,122.34,0.31432314]
[1742307681481,0.0001,122.37,122.34,0.31432314]
[1742307681660,0.0001,122.37,122.35,0.14216157]
[1742307681865,0.0001,122.37,122.36,0.14216157]
[1742307684582,41.77232025,122.37,122.34,0.17216157]
[1742307684766,41.77222025,122.36,122.34,0.17216157]
[1742307685086,41.77222025,122.36,122.34,0.03]
[1742307685874,0.0001,122.37,122.34,0.03]
[1742307686073,41.77222025,122.36,122.34,0.03]
[1742307686479,41.77222025,122.35,122.34,0.03]
[1742307691096,41.77222025,122.36,122.34,0.03]
[1742307691881,41.77222025,122.35,122.34,0.03]
[1742307693196,26.12532063,122.35,122.34,0.03]
[1742307693590,52.25064126,122.35,122.34,0.03]
[1742307693807,60.24834126,122.35,122.34,0.03]
[1742307694312,27.70242063,122.35,122.34,0.03]
[1742307694995,26.12532063,122.35,122.34,0.03]
[1742307695384,41.80220723,122.35,122.34,0.03]
[1742307697777,41.80220723,122.36,122.34,0.03]
[1742307698404,41.80220723,122.35,122.34,0.03]
[1742307700002,49.82220723,122.35,122.34,0.03]
[1742307703502,8.02,122.35,122.34,0.03]
[1742307703703,49.82220723,122.35,122.34,0.03]
[1742307704103,41.80220723,122.35,122.34,0.03]
[1742307706397,157.00141446,122.35,122.34,0.03]
[1742307706600,115.19920723,122.35,122.34,0.03]
[1742307710016,73.397,122.35,122.34,0.03]
[1742307710230,41.80220723,122.35,122.34,0.03]
[1742307713898,41.80220723,122.36,122.34,0.03]
[1742307714098,41.80220723,122.35,122.34,0.03]
[1742307717107,26.13302846,122.35,122.34,0.03]
[1742307718202,52.26605692,122.35,122.34,0.03]
[1742307718955,79.08890578,122.35,122.34,0.03]
[1742307719125,26.13302846,122.31,122.3,0.03]
[1742307720301,20.0,122.32,122.3,0.03]
[1742307720499,26.13302846,122.31,122.3,0.03]
[1742307721451,20.0,122.32,122.3,0.03]
[1742307721633,26.13302846,122.31,122.3,0.03]
[1742307722136,8.0,122.33,122.3,0.03]
[1742307722439,26.13302846,122.32,122.3,0.03]
[1742307722842,26.13302846,122.33,122.3,0.03]
[1742307723224,26.13302846,122.32,122.3,0.03]
[1742307723419,26.13302846,122.33,122.3,0.03]
[1742307724033,26.13302846,122.32,122.3,0.03]
[1742307724728,26.13302846,122.33,122.3,0.03]
[1742307724929,26.13302846,122.31,122.3,0.03]
[1742307725526,8.0,122.35,122.3,0.03]
[1742307725933,26.13302846,122.33,122.3,0.03]
[1742307726133,26.13302846,122.32,122.3,0.03]
[1742307726332,26.13302846,122.33,122.3,0.03]
[1742307727649,26.13302846,122.31,122.3,0.03]
[1742307728156,25.13302846,122.31,122.3,0.03]
[1742307728936,0.063,122.34,122.3,0.03]
[1742307729138,26.13302846,122.33,122.3,0.03]
[1742307729949,20.063,122.34,122.31,0.14216157]
[1742307730150,0.063,122.34,122.33,0.14216157]
[1742307730550,0.063,122.34,122.32,7.8043]
[1742307734251,26.19602846,122.34,122.32,7.8043]
[1742307734649,26.13302846,122.33,122.3,0.03]
[1742307734846,26.13302846,122.31,122.3,0.03]
[1742307736051,73.46,122.34,122.3,0.03]
[1742307736261,26.13302846,122.32,122.3,0.03]
[1742307736463,26.13302846,122.33,122.3,0.03]
[1742307737041,99.59302846,122.34,122.3,0.03]
[1742307737257,26.13302846,122.33,122.3,0.03]
[1742307737566,26.13302846,122.32,122.3,0.03]
[1742307738160,26.19602846,122.34,122.3,0.03]
[1742307738463,0.063,122.34,122.31,0.28432314]
[1742307738845,26.19602846,122.34,122.31,0.28432314]
[1742307739574,26.19602846,122.34,122.3,8.03]
[1742307739744,26.13302846,122.33,122.31,0.14216157]
[1742307739948,26.19602846,122.34,122.31,0.14216157]
[1742307740463,0.063,122.34,122.31,0.42648471]
[1742307741154,0.063,122.34,122.31,8.62688471]
[1742307742874,0.063,122.34,122.31,34.75991317]
[1742307743752,0.063,122.34,122.33,0.28432314]
[1742307745968,0.063,122.34,122.33,45.20916203]
[1742307753484,0.0001,122.37,122.35,0.42648471]
[1742307753693,0.0001,122.37,122.36,8.42648471]
[1742307754385,0.0001,122.37,122.36,53.20916203]
[1742307755393,0.0001,122.37,122.36,27.07613357]
[1742307755970,0.0001,122.37,122.36,53.20916203]
[1742307756789,0.0001,122.37,122.36,27.07613357]
[1742307757284,0.0001,122.37,122.36,8.42648471]
[1742307759779,0.0001,122.37,122.36,53.20916203]
[1742307761773,0.0001,122.37,122.36,8.42648471]
[1742307763280,0.0001,122.37,122.36,34.55951317]
[1742307763471,0.0001,122.37,122.36,53.20916203]
[1742307764486,0.0001,122.37,122.36,27.07613357]
[1742307764676,0.0001,122.37,122.36,8.42648471]
[1742307765078,0.0001,122.37,122.36,8.14216157]
[1742307765406,0.0001,122.37,122.36,0.14216157]
[1742307766270,26.13312846,122.37,122.36,0.14216157]
[1742307766501,26.13312846,122.37,122.34,0.28432314]
[1742307767286,0.0001,122.37,122.34,0.28432314]
[1742307767488,0.0001,122.37,122.35,0.14216157]
[1742307768398,0.0001,122.37,122.35,26.27519003]
[1742307768694,0.0001,122.37,122.36,45.20916203]
[1742307769207,0.0001,122.37,122.36,0.42648471]
[1742307771487,0.0001,122.37,122.36,20.42648471]
[1742307772504,0.0001,122.37,122.36,0.42648471]
[1742307772797,0.0001,122.37,122.36,0.14216157]
[1742307773807,26.13312846,122.37,122.33,8.0]
[1742307773981,26.13312846,122.37,122.34,0.42648471]
[1742307774187,0.0001,122.37,122.34,0.42648471]
[1742307774384,0.0001,122.37,122.36,0.28432314]
[1742307774605,0.0001,122.37,122.36,26.55951317]
[1742307776181,0.0001,122.37,122.36,45.20916203]
[1742307779311,0.0001,122.37,122.36,35.77770452]
[1742307784996,0.0001,122.37,122.36,19.07613357]
[1742307785330,0.0001,122.37,122.36,0.42648471]
[1742307785710,0.0001,122.37,122.36,0.14216157]
[1742307786208,0.0001,122.37,122.36,0.42648471]
[1742307786719,0.0001,122.37,122.36,0.14216157]
[1742307787819,16.70167095,122.37,122.36,0.14216157]
[1742307788321,16.70167095,122.37,122.34,0.03]
[1742307788517,16.70157095,122.36,122.34,0.03]
[1742307788820,16.70167095,122.37,122.34,0.03]
[1742307789018,0.0001,122.37,122.34,0.17216157]
[1742307790606,0.0001,122.37,122.36,16.84373252]
[1742307791607,0.0001,122.37,122.36,0.14216157]
[1742307793705,0.0001,122.37,122.36,35.77770452]
[1742307795242,0.0001,122.37,122.36,0.42648471]
[1742307795411,0.0001,122.37,122.36,0.14216157]
[1742307795803,0.0001,122.37,122.36,0.42648471]
[1742307796709,0.0001,122.37,122.36,0.14216157]
[1742307797914,0.0001,122.37,122.36,0.42648471]
[1742307801567,0.0001,122.37,122.36,0.14216157]
[1742307801835,0.0001,122.37,122.34,0.45648471]
[1742307802030,16.70167095,122.37,122.34,0.45648471]
[1742307802229,16.70167095,122.37,122.34,0.31432314]
[1742307802433,0.0001,122.37,122.34,0.31432314]
[1742307802624,0.0001,122.37,122.34,0.45648471]
[1742307803218,0.0001,122.37,122.34,17.15805566]
[1742307803928,0.0001,122.37,122.36,0.28432314]
[1742307810844,0.0001,122.37,122.36,16.98589409]
[1742307811046,0.0001,122.37,122.36,17.12805566]
[1742307812638,0.0001,122.37,122.36,35.77770452]
[1742307813637,0.0001,122.37,122.36,181.62450452]
[1742307814637,0.0001,122.37,122.36,185.68805377]
[1742307815037,0.0001,122.37,122.36,181.62450452]
[1742307817552,0.0001,122.37,122.36,173.87770452]
[1742307817757,0.0001,122.37,122.36,181.85770452]
[1742307818563,0.0001,122.37,122.36,146.50648471]
[1742307819340,0.0001,122.37,122.36,8.40648471]
[1742307819860,0.0001,122.37,122.36,0.42648471]
[1742307820440,0.0001,122.37,122.36,0.28432314]
[1742307823768,0.0001,122.37,122.36,35.77770452]
[1742307827847,0.0001,122.37,122.36,43.89470452]
[1742307828045,0.0001,122.37,122.36,181.99470452]
[1742307828256,0.063,122.42,122.37,19.07613357]
[1742307828569,0.063,122.42,122.41,0.14216157]
[1742307828968,0.063,122.42,122.39,35.77770452]
[1742307829166,0.063,122.42,122.41,0.14216157]
[1742307830048,0.063,122.42,122.41,0.42648471]
[1742307830246,0.063,122.42,122.41,17.12805566]
[1742307831973,0.063,122.42,122.41,0.28432314]
[1742307832173,0.063,122.42,122.4,16.84373252]
[1742307832358,0.063,122.42,122.4,0.14216157]
[1742307832562,0.063,122.42,122.4,0.42648471]
[1742307832958,0.063,122.42,122.4,0.14216157]
[1742307833164,0.063,122.42,122.4,0.42648471]
[1742307833762,16.76457095,122.42,122.4,0.14216157]
[1742307834674,16.70157095,122.41,122.36,37.64875546]
[1742307834882,0.063,122.42,122.36,8.12216157]
[1742307834883,16.70157095,122.4,122.36,8.12216157]
[1742307835182,16.70157095,122.4,122.37,0.28432314]
[1742307836375,1.7277,122.42,122.37,16.98589409]
[1742307836580,18.42927095,122.42,122.38,0.14216157]
[1742307836878,1.7277,122.42,122.38,0.14216157]
[1742307837079,18.42927095,122.42,122.38,0.14216157]
[1742307837877,16.70157095,122.41,122.37,0.42648471]
[1742307838059,18.42927095,122.42,122.37,17.12805566]
[1742307838259,1.7277,122.42,122.4,0.42648471]
[1742307838467,1.7277,122.42,122.4,8.40648471]
[1742307838671,0.063,122.42,122.4,8.40648471]
[1742307839367,0.063,122.42,122.4,25.10805566]
[1742307840260,0.063,122.42,122.4,8.40648471]
[1742307841476,0.063,122.42,122.4,25.10805566]
[1742307843006,0.063,122.42,122.4,8.40648471]
[1742307844395,0.063,122.42,122.4,0.14216157]
[1742307844598,16.76457095,122.42,122.4,0.14216157]
[1742307845599,0.063,122.42,122.4,0.14216157]
[1742307846489,0.063,122.42,122.39,7.98]
[1742307846869,0.063,122.42,122.4,0.14216157]
[1742307848073,0.063,122.42,122.4,17.12805566]
[1742307848275,0.063,122.42,122.41,17.12805566]
[1742307848688,0.063,122.42,122.41,35.77770452]
[1742307849598,0.063,122.42,122.41,173.87770452]
[1742307854428,0.063,122.42,122.41,35.77770452]
[1742307854721,0.063,122.42,122.41,0.28432314]
[1742307854901,0.063,122.42,122.41,0.14216157]
[1742307855299,0.063,122.42,122.41,0.42648471]
[1742307857017,0.063,122.42,122.41,0.14216157]
[1742307857400,0.063,122.42,122.4,0.14216157]
[1742307858534,0.063,122.42,122.4,0.42648471]
[1742307859587,0.063,122.42,122.41,35.77770452]
[1742307861110,0.063,122.42,122.41,45.14496314]
[1742307862723,0.063,122.42,122.41,19.07613357]
[1742307863427,0.063,122.42,122.41,45.14496314]
[1742307867032,0.063,122.42,122.41,183.24496314]
[1742307867206,0.063,122.42,122.41,45.14496314]
[1742307867815,0.063,122.43,122.42,19.07613357]
[1742307868024,0.063,122.43,122.42,45.14496314]
[1742307877235,0.063,122.43,122.42,183.24496314]
[1742307880326,0.063,122.43,122.42,45.14496314]
[1742307880629,0.063,122.43,122.4,0.14216157]
[1742307880831,0.063,122.43,122.41,26.06882957]
[1742307881133,0.063,122.43,122.42,8.38648471]
[1742307881319,0.063,122.43,122.42,34.45531428]
[1742307882723,0.063,122.43,122.42,8.38648471]
[1742307883642,0.063,122.43,122.4,0.28432314]
[1742307883935,0.063,122.43,122.41,7.96]
[1742307884231,0.063,122.43,122.41,0.14216157]
[1742307884432,0.063,122.43,122.41,8.10216157]
[1742307887938,0.063,122.43,122.41,7.96]
[1742307888537,16.75158972,122.43,122.41,7.96]
[1742307888738,0.063,122.43,122.41,7.96]
[1742307888934,16.75158972,122.43,122.4,8.38648471]
[1742307889135,16.68858972,122.41,122.39,216.08]
[1742307889328,16.68858972,122.41,122.39,224.04]
[1742307889835,16.68858972,122.41,122.37,0.17216157]
[1742307890037,16.68858972,122.39,122.37,0.03]
[1742307890550,16.68858972,122.4,122.37,0.03]
[1742307892120,16.68858972,122.39,122.37,0.03]
[1742307892321,16.68858972,122.4,122.37,0.03]
[1742307892818,16.68858972,122.4,122.37,0.45648471]
[1742307893237,26.1000246,122.4,122.37,0.45648471]
[1742307894430,27.7598246,122.42,122.37,26.55650931]
[1742307894825,26.1000246,122.41,122.37,26.55650931]
[1742307896327,1.6598,122.42,122.38,26.1000246]
[1742307896845,27.7598246,122.42,122.37,26.55650931]
[1742307898959,1.6598,122.42,122.39,0.42648471]
[1742307899251,0.063,122.43,122.41,26.1000246]
[1742307900432,0.063,122.43,122.42,26.52650931]
[1742307901036,0.063,122.43,122.42,45.17615817]
[1742307902832,0.063,122.43,122.42,46.74955817]
[1742307903047,0.063,122.47,122.42,46.74955817]
[1742307903048,0.063,122.47,122.44,0.14216157]
[1742307903253,0.063,122.47,122.46,45.17615817]
[1742307904144,0.063,122.47,122.46,0.42648471]
[1742307905134,0.063,122.47,122.45,7.96]
[1742307905344,0.063,122.47,122.44,0.14216157]
[1742307905549,0.063,122.47,122.44,8.13216157]
[1742307905834,26.1630246,122.47,122.44,7.99]
[1742307906136,26.1000246,122.46,122.44,7.99]
[1742307906749,0.063,122.47,122.44,7.99]
[1742307907056,26.1000246,122.46,122.44,7.99]
[1742307907355,26.1000246,122.45,122.44,0.03]
[1742307907853,99.4970246,122.45,122.44,0.03]
[1742307908161,118.14667346,122.45,122.44,0.03]
[1742307908946,99.4970246,122.45,122.44,0.03]
[1742307910071,118.14667346,122.45,122.44,0.03]
[1742307910365,99.4970246,122.45,122.44,0.03]
[1742307911365,118.14667346,122.45,122.44,0.03]
[1742307913066,44.74967346,122.45,122.44,0.03]
[1742307913852,26.1000246,122.45,122.44,0.03]
[1742307914964,44.74967346,122.45,122.44,0.03]
[1742307915371,26.1000246,122.45,122.44,0.03]
[1742307916061,44.74967346,122.45,122.44,0.03]
[1742307916268,26.1000246,122.39,122.37,0.03]
[1742307918680,81.8,122.44,122.37,0.03]
[1742307918880,26.1000246,122.41,122.37,0.45648471]
[1742307919252,26.1000246,122.42,122.38,0.14216157]
[1742307919451,26.1000246,122.43,122.38,46.1000246]
[1742307919757,26.1000246,122.42,122.38,0.14216157]
[1742307920483,1.6539,122.45,122.4,0.14216157]
[1742307920684,26.1000246,122.43,122.39,8.24432314]
[1742307920979,26.1000246,122.42,122.39,8.24432314]
[1742307921155,26.1000246,122.42,122.4,20.0]
[1742307921357,26.1000246,122.41,122.39,7.96]
[1742307921711,1.6539,122.45,122.37,0.03]
[1742307921712,26.1000246,122.4,122.37,0.03]
[1742307921879,26.1000246,122.39,122.37,0.03]
[1742307922867,26.1000246,122.4,122.37,0.03]
[1742307923066,26.1000246,122.39,122.37,0.03]
[1742307923474,26.1000246,122.38,122.37,0.03]
[1742307933710,81.8,122.39,122.37,26.1300246]
[1742307933885,81.8,122.39,122.37,0.03]
[1742307934510,1.5314,122.43,122.37,26.1300246]
[1742307934694,46.1000246,122.41,122.37,26.1300246]
[1742307935083,46.1000246,122.41,122.37,0.03]
[1742307935611,46.1000246,122.41,122.37,26.1300246]
[1742307935807,81.863,122.44,122.38,26.1000246]
[1742307935990,26.1000246,122.43,122.39,7.96]
[1742307936190,26.1000246,122.42,122.39,7.96]
[1742307936807,26.1000246,122.43,122.39,7.96]
[1742307937389,26.1000246,122.42,122.39,7.96]
[1742307937824,26.1000246,122.4,122.37,0.03]
[1742307937980,26.1000246,122.38,122.37,0.03]
[1742307938613,26.1000246,122.4,122.37,0.03]
[1742307939714,1.5234,122.43,122.38,7.96]
[1742307939914,26.1000246,122.43,122.38,34.0600246]
[1742307940406,26.1000246,122.41,122.38,7.96]
[1742307941623,26.1000246,122.4,122.38,7.96]
[1742307942289,81.8,122.43,122.38,7.96]
[1742307942497,0.063,122.44,122.38,34.0600246]
[1742307942703,26.1000246,122.43,122.38,34.0600246]
[1742307943215,26.1000246,122.42,122.38,7.96]
[1742307944504,26.1000246,122.41,122.38,7.96]
[1742307944717,26.1000246,122.42,122.38,7.96]
[1742307946596,26.1000246,122.43,122.38,34.0600246]
[1742307949000,26.1000246,122.42,122.38,7.96]
[1742307950622,26.1000246,122.43,122.39,0.42648471]
[1742307951738,0.063,122.44,122.39,26.52650931]
[1742307951907,26.1000246,122.43,122.39,0.42648471]
[1742307953712,0.063,122.44,122.39,26.52650931]
[1742307953910,26.1000246,122.43,122.39,0.42648471]
[1742307954314,0.063,122.44,122.39,0.42648471]
[1742307954315,26.1000246,122.42,122.39,0.42648471]
[1742307954701,26.1000246,122.43,122.39,0.42648471]
[1742307954900,26.1630246,122.44,122.39,26.52650931]
[1742307955109,26.1000246,122.43,122.39,0.42648471]
[1742307955602,0.063,122.44,122.39,26.52650931]
[1742307955802,26.1630246,122.44,122.39,26.52650931]
[1742307956009,26.1000246,122.43,122.39,26.52650931]
[1742307956318,26.1000246,122.43,122.39,0.42648471]
[1742307957219,0.063,122.44,122.4,26.1000246]
[1742307957403,0.063,122.44,122.4,27.7056246]
[1742307957717,0.063,122.44,122.4,18.29860787]
[1742307958219,0.063,122.44,122.4,1.6056]
[1742307958612,0.063,122.44,122.4,18.29860787]
[1742307958815,0.063,122.44,122.43,0.42648471]
[1742307959006,0.063,122.44,122.43,25.05949258]
[1742307959408,0.063,122.44,122.43,8.36648471]
[1742307960213,0.063,122.44,122.43,7.94]
[1742307961524,0.063,122.44,122.43,8.36648471]
[1742307964228,0.063,122.44,122.43,7.94]
[1742307968625,0.063,122.44,122.43,8.36648471]
[1742307969135,0.063,122.44,122.43,34.44033361]
[1742307969320,0.063,122.44,122.43,8.36648471]
[1742307971738,0.063,122.44,122.43,7.94]
[1742307972238,0.063,122.44,122.41,0.42648471]
[1742307974137,0.063,122.44,122.41,26.50033361]
[1742307974709,0.063,122.44,122.41,0.42648471]
[1742307975634,0.063,122.44,122.4,9.5456]
[1742307975935,26.1368489,122.44,122.4,9.5456]
[1742307976135,26.0738489,122.43,122.39,216.54648471]
[1742307976338,26.0738489,122.43,122.4,7.94]
[1742307977538,26.0738489,122.42,122.39,216.12]
[1742307977744,26.0738489,122.41,122.39,216.12]
[1742307978040,26.0738489,122.4,122.38,0.03]
[1742307979538,26.0738489,122.39,122.38,0.03]
[1742307981122,36.71102476,122.39,122.38,0.03]
[1742307986150,20.0,122.35,122.34,0.03]
[1742307986338,103.5551238,122.35,122.34,0.03]
[1742307987223,111.7283238,122.35,122.31,0.03]
[1742307987432,16.71102476,122.32,122.31,0.03]
[1742307988145,101.8,122.35,122.31,0.03]
[1742307988358,16.71102476,122.33,122.31,0.03]
[1742307990752,16.71102476,122.34,122.31,0.03]
[1742307991552,101.8,122.35,122.31,0.03]
[1742307991743,16.71102476,122.34,122.31,0.03]
[1742307993440,16.71102476,122.33,122.31,0.03]
[1742307994626,20.0,122.35,122.31,0.03]